fUSD/lending_fUSD_20240123
["ID","MTS","AMOUNT","RATE_DAILY","PERIOD"]
[312581757,1706026238561,-60425.99570753,0.000229,2]
[312581758,1706026238570,-4949.59913339,0.000229,2]
[312581759,1706026238581,-153.64392432,0.000229,2]
[312581760,1706026238591,-490.22675019,0.000229,2]
[312581761,1706026238601,-226.67381748,0.000229,2]
[312581762,1706026238616,-331.73128746,0.000229,2]
[312581763,1706026238626,-13487.67397718,0.000229,2]
[312581764,1706026238636,-1514.80019618,0.000229,6]
[312581765,1706026238649,-1135.85387819,0.000229,2]
[312581766,1706026238659,-169.6775118,0.000229,2]
[312581767,1706026238668,-200.0,0.000229,8]
[312581768,1706026238677,-1164.4409,0.00022907,2]
[312581769,1706026238686,-1000.0,0.00022907,2]
[312581770,1706026238696,-195.10400093,0.00022952,2]
[312581771,1706026238705,-800.0,0.00022959,2]
[312581772,1706026238714,-348880.42697373,0.0002298,2]
[312581773,1706026238724,-164.0104164,0.00022998,2]
[312581774,1706026238733,-642.01750535,0.00022998,2]
[312581775,1706026238742,-382.5072126,0.00022998,2]
[312581776,1706026238751,-473.29314073,0.00022998,2]
[312581777,1706026238761,-368.01428488,0.00022998,2]
[312581778,1706026238770,-155.48396173,0.00022998,2]
[312581779,1706026238779,-3005.83468397,0.00022998,2]
[312581780,1706026238788,-343.09423097,0.00022998,2]
[312581781,1706026238798,-260.19907905,0.00022998,2]
[312581782,1706026238807,-156.87479774,0.00022998,2]
[312581783,1706026238816,-5773.63343012,0.00022998,2]
[312581784,1706026238826,-262.5953698,0.00022998,2]
[312581785,1706026238836,-157.9801797,0.00022998,2]
[312581786,1706026238845,-155.71965949,0.00022998,2]
[312581787,1706026238855,-3935.89563762,0.00022998,2]
[312581788,1706026238864,-376.165677,0.00022998,2]
[312581789,1706026238874,-235.65900379,0.00022998,2]
[312581790,1706026238883,-155.78001372,0.00022998,2]
[312581791,1706026238893,-310.52074565,0.00022998,2]
[312581792,1706026238902,-155.0,0.00022998,2]
[312581794,1706026238912,-637.65870148,0.00022998,2]
[312581796,1706026238921,-1256.24889353,0.00022998,2]
[312581798,1706026238930,-2916.89243027,0.00022998,2]
[312581800,1706026238939,-1224.40629802,0.00022998,2]
[312581802,1706026238948,-251.70188647,0.00022998,2]
[312581803,1706026238957,-640.3877892,0.00022998,2]
[312581805,1706026238966,-457.96849023,0.00022998,2]
[312581807,1706026238975,-2309.13609472,0.00022998,2]
[312581809,1706026238985,-389.08953638,0.00022998,2]
[312581811,1706026238995,-155.0,0.00022998,2]
[312581813,1706026239004,-157.87469733,0.00022998,2]
[312581815,1706026239012,-567.04871616,0.00022998,2]
[312581817,1706026239022,-207.89868806,0.00022998,2]
[312581819,1706026239031,-269.92500188,0.00022998,2]
[312581821,1706026239041,-155.91294937,0.00022998,2]
[312581823,1706026239051,-4247.28131875,0.00022998,2]
[312581825,1706026239060,-2616.90790933,0.00022998,4]
[312581827,1706026239069,-7154.67400378,0.00022999,2]
[312581829,1706026239079,-501.74130467,0.00022999,2]
[312581831,1706026239088,-400.0,0.00022999,2]
[312581833,1706026239098,-229.59242719,0.00022999,2]
[312581835,1706026239107,-2142.12617352,0.00022999,2]
[312581837,1706026239117,-950.52621198,0.00022999,2]
[312581839,1706026239126,-156.77132149,0.00022999,2]
[312581841,1706026239135,-250.33246589,0.00022999,2]
[312581843,1706026239144,-593.66224073,0.00022999,2]
[312581845,1706026239154,-500.0,0.00022999,2]
[312581847,1706026239162,-217.55624909,0.00022999,2]
[312581849,1706026239171,-500.0,0.00022999,2]
[312581851,1706026239180,-500.0,0.00022999,2]
[312581853,1706026239189,-500.0,0.00022999,2]
[312581855,1706026239199,-227.21379508,0.00022999,2]
[312581857,1706026239209,-500.0,0.00022999,2]
[312581859,1706026239218,-500.0,0.00022999,2]
[312581861,1706026239228,-428.03389658,0.00022999,2]
[312581863,1706026239237,-500.0,0.00022999,2]
[312581864,1706026239248,-521.21114542,0.00022999,2]
[312581867,1706026239258,-500.0,0.00022999,2]
[312581868,1706026239268,-208.37790238,0.00022999,2]
[312581871,1706026239277,-500.0,0.00022999,2]
[312581873,1706026239287,-500.0,0.00022999,2]
[312581874,1706026239296,-500.0,0.00022999,2]
[312581877,1706026239305,-500.0,0.00022999,2]
[312581879,1706026239314,-500.0,0.00022999,2]
[312581880,1706026239323,-500.0,0.00022999,2]
[312581883,1706026239333,-596.70277333,0.00022999,2]
[312581885,1706026239342,-500.0,0.00022999,2]
[312581887,1706026239352,-361.13010757,0.00022999,2]
[312581889,1706026239361,-500.0,0.00022999,2]
[312581890,1706026239370,-500.0,0.00022999,2]
[312581893,1706026239379,-500.0,0.00022999,2]
[312581895,1706026239388,-500.0,0.00022999,2]
[312581897,1706026239398,-500.0,0.00022999,2]
[312581899,1706026239407,-500.0,0.00022999,2]
[312581901,1706026239417,-500.0,0.00022999,2]
[312581903,1706026239426,-500.0,0.00022999,2]
[312581905,1706026239435,-500.0,0.00022999,2]
[312581906,1706026239446,-500.0,0.00022999,2]
[312581909,1706026239456,-161.72196817,0.00022999,2]
[312581911,1706026239465,-220.32440155,0.00022999,2]
[312581912,1706026239475,-500.0,0.00022999,2]
[312581914,1706026239484,-500.0,0.00022999,2]
[312581917,1706026239495,-500.0,0.00022999,2]
[312581919,1706026239504,-500.0,0.00022999,2]
[312581920,1706026239514,-500.0,0.00022999,2]
[312581921,1706026239523,-500.0,0.00022999,2]
[312581922,1706026239533,-494.06147149,0.00022999,2]
[312581923,1706026239543,-500.0,0.00022999,2]
[312581924,1706026239553,-500.0,0.00022999,2]
[312581925,1706026239563,-500.0,0.00022999,2]
[312581926,1706026239573,-500.0,0.00022999,2]
[312581927,1706026239583,-500.0,0.00022999,2]
[312581928,1706026239595,-500.0,0.00022999,2]
[312581929,1706026239606,-500.0,0.00022999,2]
[312581930,1706026239617,-500.0,0.00022999,2]
[312581931,1706026239628,-500.0,0.00022999,2]
[312581932,1706026239641,-500.0,0.00022999,2]
[312581933,1706026239651,-500.0,0.00022999,2]
[312581934,1706026239661,-500.0,0.00022999,2]
[312581935,1706026239672,-500.0,0.00022999,2]
[312581936,1706026239682,-603.3861528,0.00022999,2]
[312581937,1706026239692,-500.0,0.00022999,2]
[312581938,1706026239702,-500.0,0.00022999,2]
[312581939,1706026239712,-500.0,0.00022999,2]
[312581940,1706026239722,-500.0,0.00022999,2]
[312581941,1706026239732,-500.0,0.00022999,2]
[312581942,1706026239743,-380.09516167,0.00022999,2]
[312581943,1706026239755,-500.0,0.00022999,2]
[312581944,1706026239765,-500.0,0.00022999,2]
[312581945,1706026239775,-372.41929131,0.00022999,2]
[312581946,1706026239786,-500.0,0.00022999,2]
[312581947,1706026239796,-548.29673651,0.00022999,2]
[312581948,1706026239805,-150.0,0.00022999,2]
[312581949,1706026239815,-150.0,0.00022999,2]
[312581950,1706026239825,-150.0,0.00022999,2]
[312581951,1706026239835,-150.0,0.00022999,2]
[312581952,1706026239845,-150.0,0.00022999,2]
[312581953,1706026239854,-150.0,0.00022999,2]
[312581954,1706026239864,-150.0,0.00022999,2]
[312581955,1706026239874,-150.0,0.00022999,2]
[312581956,1706026239884,-150.0,0.00022999,2]
[312581957,1706026239893,-150.0,0.00022999,2]
[312581958,1706026239902,-150.0,0.00022999,2]
[312581959,1706026239912,-150.0,0.00022999,2]
[312581960,1706026239922,-150.0,0.00022999,2]
[312581961,1706026239932,-150.0,0.00022999,2]
[312581962,1706026239943,-150.0,0.00022999,2]
[312581963,1706026239954,-150.0,0.00022999,2]
[312581964,1706026239965,-150.0,0.00022999,2]
[312581965,1706026239976,-150.0,0.00022999,2]
[312581966,1706026239986,-150.0,0.00022999,2]
[312581967,1706026239999,-150.0,0.00022999,2]
[312581968,1706026240009,-1334.8617953,0.00023,2]
[312581969,1706026240019,-2240010.69870087,0.00023,2]
[312581970,1706026240035,-5857.88063624,0.00023,2]
[312581971,1706026240048,-39239.6777481,0.00023,2]
[312581972,1706026240060,-310.51257539,0.00023,2]
[312581973,1706026240072,-804.84838118,0.00023,2]
[312581974,1706026240083,-741.27723955,0.00023,2]
[312581975,1706026240094,-420.8888349,0.00023,2]
[312581976,1706026240284,-5628.37510904,0.00023,2]
[312581977,1706026240304,-39865.24291392,0.00023,2]
[312581978,1706026240315,-465.55918947,0.00023,2]
[312581979,1706026240353,-765.254598,0.00023,2]
[312581980,1706026240364,-1863.2359389,0.00023,2]
[312581981,1706026240375,-307.60963438,0.00023,2]
[312581982,1706026240386,-863.56873737,0.00023,2]
[312581983,1706026240398,-10060153.38605796,0.00023,2]
[312581984,1706026240408,-2213307.09052649,0.00023,2]
[312581985,1706026240417,-239.24088123,0.00023096,2]
[312581986,1706026240427,-241.80069741,0.00023096,2]
[312581987,1706026240437,-3655.3398929,0.0002313,2]
[312581988,1706026240446,-1487.24,0.00023215,2]
[312581989,1706026240456,-736.44,0.00023245,2]
[312581990,1706026240465,-156.77,0.00023757,2]
[312581991,1706026240476,-500.0,0.00023999,2]
[312581992,1706026240485,-201.31020997,0.00024,2]
[312581993,1706026240497,-155.6862248,0.00024,2]
[312581994,1706026240506,-731.40141029,0.00024,7]
[312581995,1706026240516,-736.44,0.00024046,2]
[312581996,1706026240525,-210.0,0.00024147,2]
[312581997,1706026240534,-330.26,0.00024163,2]
[312581998,1706026240543,-167.0,0.00024297,2]
[312581999,1706026240735,-200.0,0.00024308,2]
[312582000,1706026240755,-325.29759389,0.0002442,2]
[312582001,1706026240765,-250.0,0.00024658,2]
[312582002,1706026240774,-946.89,0.00024658,4]
[312582003,1706026240783,-150.0,0.00024658,2]
[312582004,1706026240793,-150.0,0.00024658,2]
[312582005,1706026240802,-150.0,0.00024658,2]
[312582006,1706026240813,-150.0,0.00024658,2]
[312582007,1706026240822,-150.0,0.00024658,2]
[312582008,1706026240831,-150.0,0.00024658,2]
[312582009,1706026240840,-150.0,0.00024658,2]
[312582010,1706026240850,-150.0,0.00024658,2]
[312582011,1706026240859,-150.0,0.00024658,2]
[312582012,1706026240869,-150.0,0.00024658,2]
[312582013,1706026240878,-150.0,0.00024658,2]
[312582014,1706026240888,-150.0,0.00024658,2]
[312582015,1706026240897,-150.0,0.00024658,2]
[312582016,1706026240907,-150.0,0.00024658,2]
[312582017,1706026240917,-150.0,0.00024658,2]
[312582018,1706026240926,-150.0,0.00024658,2]
[312582019,1706026240935,-150.0,0.00024658,2]
[312582020,1706026240944,-150.0,0.00024658,2]
[312582021,1706026240955,-150.0,0.00024658,2]
[312582022,1706026240964,-150.0,0.00024658,2]
[312582023,1706026240973,-1000.0,0.00024731,2]
[312582024,1706026240982,-629.27985866,0.00024799,2]
[312582025,1706026240991,-736.44,0.00024847,2]
[312582026,1706026241001,-1487.24,0.00024859,2]
[312582027,1706026241010,-192.4053857,0.00025,5]
[312582028,1706026241019,-433.81782231,0.00025,2]
[312582029,1706026241029,-242.30425329,0.00025,2]
[312582030,1706026241039,-299.999999,0.00025,2]
[312582031,1706026241048,-1075.57554515,0.00025,2]
[312582032,1706026241057,-1779.7878616,0.00025,7]
[312582033,1706026241067,-2556.0,0.00025,2]
[312582034,1706026241076,-7852.0,0.00025,2]
[312582035,1706026241085,-450.0,0.00025,3]
[312582036,1706026241095,-156.77,0.00025437,2]
[312582037,1706026241104,-274.32520966,0.0002549,2]
[312582038,1706026241114,-152.87,0.0002592,2]
[312582039,1706026241123,-201.28334269,0.00026,2]
[312582040,1706026241132,-167.0,0.00026302,2]
[312582041,1706026241141,-330.26,0.00026427,2]
[312582042,1706026241150,-1487.24,0.00026502,2]
[312582043,1706026241160,-1046.83,0.00026575,2]
[312582044,1706026241169,-1876.38,0.00026575,2]
[312582045,1706026241179,-500.0,0.00027,3]
[312582046,1706026241188,-469.9816643,0.00027,2]
[312582047,1706026241199,-200.0,0.00027009,2]
[312582048,1706026241210,-156.77,0.00027118,2]
[312582049,1706026241219,-1561.61,0.00027123,2]
[312582050,1706026241229,-150.0,0.00027397,2]
[312582051,1706026241239,-155.0,0.00027397,2]
[312582052,1706026241250,-152.64,0.00027397,2]
[312582053,1706026241259,-1000.0,0.00027479,2]
[312582054,1706026241269,-152.64,0.00027702,2]
[312582055,1706026241279,-151.41324109,0.00027945,2]
[312582056,1706026241288,-556.32480456,0.00028,2]
[312582057,1706026241298,-152.64,0.00028006,2]
[312582058,1706026241307,-1487.24,0.00028146,2]
[312582059,1706026241316,-167.0,0.00028307,2]
[312582060,1706026241326,-152.64,0.0002831,2]
[312582061,1706026241336,-152.64,0.00028615,2]
[312582062,1706026241345,-330.26,0.0002869,2]
[312582064,1706026241354,-156.77,0.00028798,2]
[312582066,1706026241364,-152.64,0.00028919,2]
[312582068,1706026241374,-326.64714414,0.00029,2]
[312582070,1706026241383,-1184.27940036,0.00029,15]
[312582072,1706026241393,-1020.80297118,0.00029,2]
[312582074,1706026241404,-550.0,0.00029,3]
[312582076,1706026241414,-152.64,0.00029224,2]
[312582078,1706026241424,-152.64,0.00029528,2]
[312582080,1706026241434,-321.16,0.00029635,2]
[312582082,1706026241444,-200.0,0.0002971,2]
[312582084,1706026241453,-1487.24,0.0002979,2]
[312582086,1706026241463,-175.58250697,0.000298,2]
[312582088,1706026241472,-152.64,0.00029833,2]
[312582091,1706026241486,-153.64392432,0.000299,2]
[312582093,1706026241497,-300.0,0.00029999,2]
[312582095,1706026241507,-300.0,0.00029999,2]
[312582097,1706026241517,-300.0,0.00029999,2]
[312582099,1706026241526,-300.0,0.00029999,2]
[312582101,1706026241536,-300.0,0.00029999,2]
[312582103,1706026241546,-300.0,0.00029999,2]
[312582105,1706026241555,-300.0,0.00029999,2]
[312582107,1706026241565,-5623.87809387,0.0003,2]
[312582109,1706026241575,-582.49438921,0.0003,2]
[312582111,1706026241585,-691.72097675,0.0003,2]
[312582113,1706026241594,-9643.13201467,0.0003,2]
[312582116,1706026241607,-155.0,0.0003,2]
[312582118,1706026241617,-192.291184,0.0003,2]
[312582120,1706026241626,-152.64,0.00030137,2]
[312582121,1706026241635,-153.99,0.00030137,2]
[312582124,1706026241646,-1000.0,0.00030227,2]
[312582126,1706026241656,-150.0,0.000304,2]
[312582128,1706026241666,-152.64,0.00030441,2]
[312582130,1706026241676,-152.64,0.00030746,2]
[312582132,1706026241685,-330.26,0.00030954,2]
[312582134,1706026241695,-600.0,0.00031,3]
[312582136,1706026241704,-152.64,0.0003105,2]
[312582138,1706026241714,-152.64,0.00031355,2]
[312582140,1706026241723,-152.64,0.00031659,2]
[312582142,1706026241732,-152.64,0.00031963,2]
[312582144,1706026241742,-263.89358247,0.00032,2]
[312582146,1706026241752,-152.64,0.00032268,2]
[312582148,1706026241761,-200.0,0.00032411,2]
[312582150,1706026241771,-152.64,0.00032572,2]
[312582152,1706026241780,-169.02655798,0.000327,2]
[312582154,1706026241790,-169.02655793,0.000327,2]
[312582156,1706026241802,-169.02655793,0.000327,2]
[312582158,1706026241811,-169.02655793,0.000327,2]
[312582160,1706026241821,-152.64,0.00032877,2]
[312582162,1706026241830,-855.65,0.00032877,15]
[312582164,1706026241840,-207.0,0.00032886,2]
[312582166,1706026241849,-1000.0,0.00032975,2]
[312582168,1706026241859,-624.03501934,0.00033,2]
[312582170,1706026241868,-600.0,0.00033,2]
[312582172,1706026241878,-650.0,0.00033,3]
[312582174,1706026241888,-182.44092318,0.00033,4]
[312582176,1706026241897,-1615.0,0.00033211,5]
[312582178,1706026241907,-330.26,0.00033218,2]
[312582180,1706026241916,-357.91955435,0.000336,2]
[312582182,1706026241926,-207.0,0.00033929,4]
[312582184,1706026241937,-1000.0,0.00034,4]
[312582187,1706026241948,-5000.0,0.000345,15]
[312582189,1706026241957,-2000.0,0.000348,4]
[312582190,1706026241968,-503.09047509,0.000349,2]
[312582193,1706026241977,-503.09047507,0.000349,2]
[312582195,1706026241990,-503.09047507,0.000349,2]
[312582197,1706026242001,-207.0,0.00034972,6]
[312582199,1706026242011,-311.63637336,0.0003498,14]
[312582201,1706026242021,-9126.23377638,0.00035,15]
[312582263,1706026242610,-24319.19620216,0.00035,15]
[312582365,1706026243171,-66554.57002146,0.00035,15]
[312582368,1706026243181,-155.0,0.00035,2]
[312582371,1706026243191,-172.16275919,0.00035,4]
[312582374,1706026243201,-513.60306723,0.00035,14]
[312582377,1706026243212,-700.0,0.00035,3]
[312582380,1706026243222,-179.13468914,0.00035,2]
[312582383,1706026243233,-179.13468914,0.00035,2]
[312582386,1706026243243,-1127.141,0.00035168,2]
[312582389,1706026243259,-319.0,0.00035168,2]
[312582392,1706026243270,-340.595,0.00035168,2]
[312582395,1706026243285,-1054.249,0.00035175,2]
[312582398,1706026243297,-330.26,0.00035482,2]
[312582401,1706026243307,-324.79163949,0.00035701,2]
[312582404,1706026243317,-200.0,0.00035712,5]
[312582407,1706026243328,-172.27,0.000358,7]
[312582409,1706026243338,-100000.0,0.00036,16]
[312582413,1706026243348,-5000.0,0.00036,3]
[312582416,1706026243358,-207.0,0.00036015,8]
[312582419,1706026243367,-855.65,0.00036613,15]
[312582422,1706026243377,-153.64392432,0.000369,2]
[312582423,1706026243386,-43438.78454603,0.00037,17]
[312582428,1706026243399,-27630.24063071,0.00037,17]
[312582433,1706026243419,-297.27599253,0.00037,17]
[312582438,1706026243444,-792.19540304,0.00037,17]
[312582443,1706026243456,-27139.11263266,0.00037,17]
[312582491,1706026243802,-385.79454247,0.00037,17]
[312582505,1706026243933,-316.59625256,0.00037,17]
[312582507,1706026243942,-179.13468914,0.00037,2]
[312582509,1706026243952,-750.0,0.00037,3]
[312582511,1706026243961,-12.72801896,0.00037058,10]
[312582514,1706026243977,-194.27198104,0.00037058,10]
[312582516,1706026243986,-628.231023,0.00037323,2]
[312582519,1706026244451,-487.897592,0.00037323,2]
[312582520,1706026244464,-680.3546727,0.00037323,2]
[312582521,1706026244477,-832.97723447,0.00037323,2]
[312582522,1706026244490,-561.80345319,0.00037323,2]
[312582523,1706026244508,-800.0,0.00037397,5]
[312582524,1706026244518,-964.29287619,0.00037599,2]
[312582525,1706026244530,-35.70712381,0.00037599,2]
[312582526,1706026244542,-158.31,0.000377,3]
[312582527,1706026244552,-153.01,0.000377,3]
[312582528,1706026244561,-1117.32,0.000377,3]
[312582529,1706026244573,-1117.32,0.000377,3]
[312582530,1706026244583,-1117.32,0.000377,3]
[312582531,1706026244592,-1117.32,0.000377,3]
[312582532,1706026244602,-1117.32,0.000377,3]
[312582533,1706026244612,-1117.32,0.000377,3]
[312582534,1706026244622,-1117.32,0.000377,3]
[312582535,1706026244641,-1117.32,0.000377,3]
[312582536,1706026244653,-1117.32,0.000377,3]
[312582537,1706026244663,-1117.32,0.000377,3]
[312582538,1706026244673,-1117.32,0.000377,3]
[312582539,1706026244683,-1117.32,0.000377,3]
[312582540,1706026244693,-1117.32,0.000377,3]
[312582541,1706026244702,-1117.32,0.000377,3]
[312582542,1706026244713,-1117.32,0.000377,3]
[312582543,1706026244723,-1117.32,0.000377,3]
[312582544,1706026244733,-1117.32,0.000377,3]
[312582545,1706026244743,-1117.32,0.000377,3]
[312582546,1706026244759,-1117.32,0.000377,3]
[312582547,1706026244769,-1117.32,0.000377,3]
[312582548,1706026244778,-330.26,0.00037746,2]
[312582549,1706026244788,-1046.83,0.00037808,2]
[312582550,1706026244798,-1876.38,0.00037808,2]
[312582551,1706026244810,-221.35876382,0.0003789,7]
[312582552,1706026244822,-150.0,0.00037899,2]
[312582553,1706026244832,-150.0,0.00037899,2]
[312582554,1706026244841,-193875.76184825,0.000379,2]
[312582555,1706026244855,-1352.6025662,0.000379,2]
[312582556,1706026244884,-323.58556019,0.000379,2]
[312582557,1706026244895,-4009.40446788,0.000379,2]
[312582558,1706026244907,-1224.44871849,0.000379,2]
[312582559,1706026244918,-2862.10188187,0.000379,2]
[312582560,1706026244930,-262.0,0.000379,2]
[312582561,1706026244942,-314.3100001,0.000379,2]
[312582562,1706026244953,-6634.27264484,0.000379,2]
[312582563,1706026244969,-1523.22853521,0.000379,2]
[312582564,1706026244980,-636.52668819,0.000379,2]
[312582565,1706026244992,-2034.85164275,0.000379,2]
[312582566,1706026245007,-835.14905217,0.000379,2]
[312582567,1706026245019,-720.61822955,0.000379,2]
[312582568,1706026245046,-3749.09173291,0.000379,2]
[312582569,1706026245103,-1854.48796,0.000379,2]
[312582570,1706026245163,-1477.83317733,0.000379,2]
[312582571,1706026245183,-9537.09999968,0.000379,2]
[312582572,1706026245195,-11838.65059956,0.000379,2]
[312582573,1706026245206,-1310.89655929,0.000379,2]
[312582574,1706026245220,-851.16132265,0.000379,2]
[312582575,1706026245232,-423.95581672,0.000379,2]
[312582576,1706026245243,-1317.63765125,0.000379,2]
[312582577,1706026245268,-1605.93138325,0.000379,2]
[312582598,1706026246424,-408.79916685,0.00022999,2]
[312582599,1706026246437,-268.11,0.00022999,2]
[312582600,1706026246451,-292.7330366,0.00022999,2]
[312582601,1706026246463,-1852.27022705,0.00022999,2]
[312582602,1706026246473,-150.62629061,0.00022999,2]
[312582603,1706026246503,-1254.78744328,0.00022999,2]
[312582604,1706026246515,-201.64538095,0.00022999,2]
[312582605,1706026246525,-169.02655793,0.000327,2]
[312582606,1706026246537,-265.27585597,0.00036999,4]
[312582607,1706026246548,-259.94720516,0.00036999,4]
[312582609,1706026246584,-741.26507418,0.00036999,4]
[312582610,1706026246594,-659.77246282,0.000379,2]
[312582611,1706026246608,-660.32229313,0.000379,2]
[312582612,1706026246621,-5102.95204037,0.000379,2]
[312582615,1706026246724,-359.24718817,0.00036999,4]
[312582616,1706026246735,-640.75281183,0.000379,2]
[312582617,1706026303802,-337.96960043,0.00021085,2]
[312582618,1706026303826,-1045.03284629,0.00021086,2]
[312582619,1706026303847,-279.44549787,0.00021086,2]
[312582620,1706026303872,-354.87715265,0.00021087,2]
[312582621,1706026303892,-377.2721312,0.00021087,2]
[312582622,1706026303918,-281.67420414,0.00021088,2]
[312582623,1706026303938,-133.72856742,0.00021088,2]
[312582624,1706026386121,-387.34833552,0.00021078,2]
[312582625,1706026386141,-279.44549787,0.00021079,2]
[312582626,1706026386161,-2614.37433871,0.00021079,2]
[312582627,1706026386183,-10565.92802025,0.00021079,2]
[312582628,1706026386205,-273.07643202,0.0002108,2]
[312582629,1706026386227,-305.82737563,0.0002108,2]
[312582630,1706026442222,-203.22538019,0.00021057,2]
[312582631,1706026442243,-385.00214838,0.00021057,2]
[312582632,1706026442263,-629.50668256,0.00021058,2]
[312582633,1706026442283,-215.71744447,0.00021059,2]
[312582634,1706026442303,-2566.5483444,0.00021076,2]
[312582642,1706026714538,3192.87206217,0.00020216,2]
[312582643,1706026717322,620.22186661,0.00020216,2]
[312582644,1706026721183,5002.0,0.00020005,7]
[312582645,1706026722229,156.20092982,0.00020847,2]
[312582646,1706026732738,394.57144215,0.00020871,2]
[312582647,1706026757834,1363.32,0.0002091,2]
[312582648,1706026758146,235.10419243,0.00020871,2]
[312582649,1706026764815,2325.32167616,0.00020871,2]
[312582650,1706026774152,163.95608571,0.00020871,2]
[312582651,1706026780353,2328.87749525,0.00020871,2]
[312582652,1706026786660,290.93,0.00019773,2]
[312582653,1706026788672,23900.0,0.00020782,2]
[312582654,1706026839610,760.46,0.00020436,2]
[312582655,1706026843062,2605.47036357,0.00020435,2]
[312582656,1706026860813,152.87,0.00020449,2]
[312582657,1706026870078,300.0,0.00020954,2]
[312582658,1706026884546,150.0,0.00020448,2]
[312582659,1706027023798,313.57,0.00020276,2]
[312582660,1706027052689,337.96960043,0.00021002,2]
[312582661,1706027056226,867.95596008,0.00021002,2]
[312582662,1706027066807,1046.3997283,0.00021002,2]
[312582663,1706027068301,337.50548863,0.00021002,2]
[312582664,1706027071614,295.78388584,0.00021002,2]
[312582665,1706027077350,4276.78305022,0.00021002,2]
[312582666,1706027077576,652.20813979,0.00021002,2]
[312582667,1706027088687,4640.64426459,0.00021002,2]
[312582668,1706027090090,289.23191357,0.00021002,2]
[312582669,1706027091959,7791.36306763,0.00021002,2]
[312582670,1706027093554,759.72381985,0.00021002,2]
[312582671,1706027095147,2605.47036357,0.00021002,2]
[312582672,1706027106846,1045.03284629,0.00021002,2]
[312582673,1706027157546,2000.0,0.00020548,2]
[312582674,1706027163284,1000.0,0.00020436,2]
[312582675,1706027177090,2605.47036357,0.00021002,2]
[312582676,1706027183960,406.17,0.00020529,2]
[312582677,1706027184073,161.87,0.00020601,2]
[312582678,1706027184512,161.87,0.00020735,2]
[312582679,1706027184749,161.87,0.00020869,2]
[312582680,1706027193781,250.0,0.00020448,2]
[312582681,1706027249094,2605.47036357,0.00021002,2]
[312582701,1706027331083,-176.78584365,0.00021003,2]
[312582702,1706027331107,-1179.40560522,0.00021003,2]
[312582703,1706027331131,-161.87,0.00021003,2]
[312582704,1706027336419,292.85,0.0001849,2]
[312582705,1706027336910,292.85,0.00020754,2]
[312582706,1706027339926,161.28,0.00020515,10]
[312582707,1706027348339,166.29551277,0.00020948,2]
[312582708,1706027356743,233.37,0.00020408,2]
[312582709,1706027406777,1672.54,0.00020523,2]
[312582725,1706027432200,-150.0,0.00021046,2]
[312582726,1706027432210,-150.0,0.00021046,2]
[312582727,1706027432221,-300.0,0.00021046,2]
[312582728,1706027432230,-4865.27405715,0.00021047,2]
[312582729,1706027432265,-4819.12133412,0.00021047,2]
[312582730,1706027432277,-881.53262898,0.00021047,2]
[312582731,1706027432286,-324.53200512,0.00021048,2]
[312582732,1706027432295,-341.0495753,0.00021048,2]
[312582733,1706027432306,-336.53890306,0.00021048,2]
[312582734,1706027432316,-1023.94564382,0.00021048,2]
[312582735,1706027432326,-292.8513192,0.00021048,2]
[312582736,1706027432338,-1512.296746,0.00021048,2]
[312582737,1706027432347,-622.80042469,0.00021048,2]
[312582738,1706027432360,-28.06958058,0.00021048,2]